[Event "1st Bangalore GM-Open-A 2024"]
[Site "Bangalore"]
[Date "2024.01.23"]
[Round "7.16"]
[White "Shyaamnikhil P"]
[Black "Kumar, Gaurav"]
[Result "1/2-1/2"]
[ECO "B51"]
[WhiteElo "2443"]
[BlackElo "1953"]
[Annotator "RC"]
[PlyCount "97"]
[EventDate "2024.01.20"]
[EventType "swiss"]
[EventCountry "IND"]
[SourceTitle "playchess.com"]
[Source "ChessBase"]
[SourceQuality "1"]
[TimeControl "5400+30"]

1. e4 {[%emt 0:00:04]} c5 {[%emt 0:02:36]} 2. Nf3 {[%emt 0:00:51]} Nc6 {[%emt 0:00:15]} 3. Bb5 {[%emt 0:00:23]} d6 {[%emt 0:05:34]} 4. O-O {[%emt 0:04:12]} Bd7 {[%emt 0:00:24]} 5. Re1 {[%emt 0:00:20]} a6 {[%emt 0:00:24]} 6. Bxc6 {[%emt 0:00:08]} Bxc6 {[%emt 0:00:52]} 7. d4 {[%emt 0:00:06]} cxd4 {[%emt 0:02:19]} 8. Nxd4 {[%emt 0:07:27]} Nf6 {[%emt 0:04:16]} 9. Nc3 {[%emt 0:05:34]} e6 {[%emt 0:06:51]} 10. Bg5 {[%emt 0:09:38]} Be7 {[%emt 0:00:53]} 11. Qd2 {[%emt 0:00:47]} O-O {[%emt 0:03:54]} 12. Rad1 {[%emt 0:00:40]} Rc8 {[%emt 0:17:58]} 13. a3 {[%emt 0:10:35]} h6 {[%emt 0:07:20]} 14. Bh4 {[%emt 0:07:03]} Qb6 {[%emt 0:03:00]} 15. Qc1 {[%emt 0:02:13]} Qc5 {[%emt 0:02:53]} 16. Rd3 {[%emt 0:04:50]} Qh5 {[%emt 0:08:43]} 17. Bg3 {[%emt 0:01:05]} d5 {[%emt 0:08:24]} 18. exd5 {[%emt 0:12:09]} Bxd5 {[%emt 0:00:27]} 19. Be5 {[%emt 0:09:26]} Bc6 {[%emt 0:05:52]} 20. Rh3 {[%emt 0:10:54]} Qg6 {[%emt 0:06:30]} 21. Rg3 {[%emt 0:00:06]} Qh7 {[%emt 0:00:41]} 22. Qd1 {[%emt 0:00:30]} Rfd8 {[%emt 0:02:33]} 23. Qe2 {[%emt 0:00:23]} Ne8 {[%emt 0:00:55]} 24. Nxc6 {[%emt 0:02:03]} Rxc6 {[%emt 0:00:06]} 25. Ne4 {[%emt 0:02:01]} f6 {[%emt 0:00:34]} 26. Bc3 {[%emt 0:00:11]} e5 {[%emt 0:00:19]} 27. Rd3 {[%emt 0:00:22]} Rxd3 {[%emt 0:01:36]} 28. Qxd3 {[%emt 0:00:05]} Qf5 {[%emt 0:00:10]} 29. Rd1 {[%emt 0:03:36]} Nd6 {[%emt 0:01:35]} 30. f3 {[%emt 0:01:48]} Nxe4 {[%emt 0:00:26]} 31. fxe4 {[%emt 0:00:05]} Qe6 {[%emt 0:00:56]} 32. Bb4 {[%emt 0:02:48]} Bxb4 {[%emt 0:00:40]} 33. axb4 {[%emt 0:00:04]} Qc4 {[%emt 0:00:19]} 34. c3 {[%emt 0:00:28]} Qxd3 {[%emt 0:02:07]} 35. Rxd3 {[%emt 0:00:05]} b5 {[%emt 0:00:42]} 36. Kf2 {[%emt 0:00:22]} h5 {[%emt 0:00:28]} 37. Rd7 {[%emt 0:02:02]} Kh7 {[%emt 0:00:23]} 38. Ke3 {[%emt 0:01:16]} Kh6 {[%emt 0:00:19]} 39. h4 {[%emt 0:02:10]} Re6 {[%emt 0:02:27]} 40. b3 {[%emt 0:00:27]} Rb6 {[%emt 0:00:42]} 41. Ra7 {[%emt 0:00:46]} Rc6 {[%emt 0:00:24]} 42. Kd3 {[%emt 0:00:09]} Rd6+ {[%emt 0:00:08]} 43. Kc2 {[%emt 0:00:10]} Rc6 {[%emt 0:00:12]} 44. Rd7 {[%emt 0:00:25]} g5 {[%emt 0:00:15]} 45. g3 {[%emt 0:00:10]} Kg6 {[%emt 0:01:32]} 46. Re7 {[%emt 0:00:25]} Rb6 {[%emt 0:02:53]} 47. Kd3 {[%emt 0:00:31]} Rd6+ {[%emt 0:00:06]} 48. Kc2 {[%emt 0:00:27]} Rb6 {[%emt 0:00:11]} 49. Kd3 {[%emt 0:00:09]} 1/2-1/2

[Event "1st Bangalore GM-Open-A 2024"]
[Site "Bangalore"]
[Date "2024.01.23"]
[Round "7.17"]
[White "Mohammad Nubairshah Shaikh"]
[Black "Dzhumaev, Marat"]
[Result "1/2-1/2"]
[ECO "E91"]
[WhiteElo "2428"]
[BlackElo "2362"]
[Annotator "RC"]
[PlyCount "83"]
[EventDate "2024.01.20"]
[EventType "swiss"]
[EventCountry "IND"]
[SourceTitle "playchess.com"]
[Source "ChessBase"]
[SourceQuality "1"]
[TimeControl "5400+30"]

1. d4 {[%emt 0:09:54]} Nf6 {[%emt 0:00:21]} 2. c4 {[%emt 0:00:23]} g6 {[%emt 0:00:39]} 3. Nc3 {[%emt 0:00:07]} Bg7 {[%emt 0:00:08]} 4. e4 {[%emt 0:00:02]} d6 {[%emt 0:00:13]} 5. Be2 {[%emt 0:00:05]} O-O {[%emt 0:00:15]} 6. Nf3 {[%emt 0:00:04]} c5 {[%emt 0:00:44]} 7. d5 {[%emt 0:02:26]} e6 {[%emt 0:00:32]} 8. O-O {[%emt 0:00:04]} exd5 {[%emt 0:00:10]} 9. exd5 {[%emt 0:00:25]} Re8 {[%emt 0:02:45]} 10. h3 {[%emt 0:00:50]} Bf5 {[%emt 0:00:47]} 11. Bd3 {[%emt 0:00:38]} Bxd3 {[%emt 0:00:52]} 12. Qxd3 {[%emt 0:00:02]} a6 {[%emt 0:11:11]} 13. a3 {[%emt 0:04:13]} Nbd7 {[%emt 0:01:04]} 14. Be3 {[%emt 0:06:13]} Nh5 {[%emt 0:03:59]} 15. Rae1 {[%emt 0:07:49]} Ne5 {[%emt 0:19:27]} 16. Nxe5 {[%emt 0:00:54]} Bxe5 {[%emt 0:00:11]} 17. b4 {[%emt 0:11:40]} b6 {[%emt 0:27:54]} 18. Bd2 {[%emt 0:01:49]} Qd7 {[%emt 0:03:17]} 19. Ne4 {[%emt 0:01:40]} Nf6 {[%emt 0:07:33]} 20. Ng5 {[%emt 0:03:25]} Qf5 {[%emt 0:00:16]} 21. Qxf5 {[%emt 0:02:40]} gxf5 {[%emt 0:00:08]} 22. bxc5 {[%emt 0:00:11]} bxc5 {[%emt 0:00:06]} 23. Rb1 {[%emt 0:00:07]} Rab8 {[%emt 0:04:42]} 24. Rfe1 {[%emt 0:04:53]} Kg7 {[%emt 0:00:55]} 25. Kf1 {[%emt 0:05:20]} h6 {[%emt 0:04:09]} 26. Nf3 {[%emt 0:00:28]} Ne4 {[%emt 0:00:11]} 27. Ba5 {[%emt 0:00:19]} Bf6 {[%emt 0:06:48]} 28. Bc7 {[%emt 0:04:55]} Rxb1 {[%emt 0:01:28]} 29. Rxb1 {[%emt 0:00:02]} Bd4 {[%emt 0:00:09]} 30. Rb6 {[%emt 0:03:31]} Bxf2 {[%emt 0:00:09]} 31. Bxd6 {[%emt 0:00:12]} Bg3 {[%emt 0:00:51]} 32. Bxg3 {[%emt 0:02:43]} Nxg3+ {[%emt 0:00:06]} 33. Kg1 {[%emt 0:00:02]} Re3 {[%emt 0:02:47]} 34. Rb1 {[%emt 0:07:32]} Ne4 {[%emt 0:00:34]} 35. Nh4 {[%emt 0:02:14]} Kf6 {[%emt 0:01:07]} 36. Rb6+ {[%emt 0:03:15]} Kg5 {[%emt 0:00:09]} 37. Nf3+ {[%emt 0:00:01]} Kf4 {[%emt 0:00:06]} 38. Rxa6 {[%emt 0:08:19]} Rc3 {[%emt 0:00:22]} 39. Kh2 {[%emt 0:01:03]} Rxc4 {[%emt 0:00:29]} 40. Rxh6 {[%emt 0:00:35]} Rc1 {[%emt 0:00:17]} 41. d6 {[%emt 0:07:55]} Rd1 {[%emt 0:00:17]} 42. Rh4+ {[%emt 0:01:20]} 1/2-1/2

[Event "1st Bangalore GM-Open-A 2024"]
[Site "Bangalore"]
[Date "2024.01.23"]
[Round "7.18"]
[White "Tahbaz, Arash"]
[Black "Jaiveer Mahendru"]
[Result "1-0"]
[ECO "D74"]
[WhiteElo "2425"]
[BlackElo "2294"]
[Annotator "RC"]
[PlyCount "111"]
[EventDate "2024.01.20"]
[EventType "swiss"]
[EventCountry "IND"]
[SourceTitle "playchess.com"]
[Source "ChessBase"]
[SourceQuality "1"]
[TimeControl "5400+30"]

1. Nf3 {[%emt 0:00:05]} d5 {[%emt 0:00:24]} 2. g3 {[%emt 0:00:03]} g6 {[%emt 0:00:09]} 3. Bg2 {[%emt 0:00:22]} Bg7 {[%emt 0:00:04]} 4. d4 {[%emt 0:01:16]} Nf6 {[%emt 0:00:03]} 5. O-O {[%emt 0:00:05]} O-O {[%emt 0:00:03]} 6. c4 {[%emt 0:00:32]} c6 {[%emt 0:00:03]} 7. Nc3 {[%emt 0:00:35]} Nbd7 {[%emt 0:04:06]} 8. cxd5 {[%emt 0:15:29]} Nxd5 {[%emt 0:02:38]} 9. e4 {[%emt 0:01:52]} Nxc3 {[%emt 0:05:21]} 10. bxc3 {[%emt 0:00:04]} c5 {[%emt 0:02:10]} 11. Bg5 {[%emt 0:02:13]} h6 {[%emt 0:16:23]} 12. Be3 {[%emt 0:03:16]} cxd4 {[%emt 0:04:05]} 13. cxd4 {[%emt 0:00:10]} Nb6 {[%emt 0:02:01]} 14. Rc1 {[%emt 0:15:36]} Bd7 {[%emt 0:06:28]} 15. Qb3 {[%emt 0:00:07]} e6 {[%emt 0:14:38]} 16. Ne5 {[%emt 0:04:57]} Ba4 {[%emt 0:02:28]} 17. Qb4 {[%emt 0:00:04]} Be8 {[%emt 0:09:44]} 18. h4 {[%emt 0:03:16]} f6 {[%emt 0:00:53]} 19. Nd3 {[%emt 0:01:21]} Bf7 {[%emt 0:07:18]} 20. Nc5 {[%emt 0:21:42]} Qe7 {[%emt 0:01:02]} 21. a4 {[%emt 0:00:05]} Rab8 {[%emt 0:00:21]} 22. a5 {[%emt 0:04:18]} Nd7 {[%emt 0:00:16]} 23. Na6 {[%emt 0:00:11]} Qxb4 {[%emt 0:00:14]} 24. Nxb4 {[%emt 0:00:03]} Rfc8 {[%emt 0:05:19]} 25. f4 {[%emt 0:01:55]} Bf8 {[%emt 0:01:49]} 26. Bd2 {[%emt 0:00:22]} Rxc1 {[%emt 0:03:06]} 27. Rxc1 {[%emt 0:00:06]} Rd8 {[%emt 0:00:08]} 28. a6 {[%emt 0:05:48]} bxa6 {[%emt 0:04:04]} 29. Nc6 {[%emt 0:04:07]} Re8 {[%emt 0:00:00]} 30. Ba5 {[%emt 0:01:50]} e5 {[%emt 0:04:07]} 31. Bh3 {[%emt 0:03:42]} Nb8 {[%emt 0:02:10]} 32. fxe5 {[%emt 0:02:18]} Nxc6 {[%emt 0:00:19]} 33. Rxc6 {[%emt 0:00:03]} fxe5 {[%emt 0:00:01]} 34. d5 {[%emt 0:00:10]} Rb8 {[%emt 0:02:08]} 35. d6 {[%emt 0:00:14]} Rb1+ {[%emt 0:00:26]} 36. Kf2 {[%emt 0:00:09]} Rb2+ {[%emt 0:00:08]} 37. Ke1 {[%emt 0:00:22]} Rb3 {[%emt 0:01:25]} 38. d7 {[%emt 0:02:24]} Be7 {[%emt 0:00:01]} 39. Rc8+ {[%emt 0:00:49]} Kh7 {[%emt 0:01:10]} 40. Re8 {[%emt 0:00:27]} Bf6 {[%emt 0:00:27]} 41. Bd8 {[%emt 0:00:16]} Rb8 {[%emt 0:02:31]} 42. Bxf6 {[%emt 0:01:37]} Bxe8 {[%emt 0:00:00]} 43. d8=Q {[%emt 0:00:17]} Rxd8 {[%emt 0:00:04]} 44. Bxd8 {[%emt 0:00:04]} Bc6 {[%emt 0:00:03]} 45. Bg2 {[%emt 0:00:15]} Kg7 {[%emt 0:00:06]} 46. g4 {[%emt 0:00:53]} Kf7 {[%emt 0:01:01]} 47. Kd2 {[%emt 0:00:21]} Ke6 {[%emt 0:00:04]} 48. Ba5 {[%emt 0:00:08]} Bb5 {[%emt 0:00:39]} 49. Bb4 {[%emt 0:00:20]} Kf6 {[%emt 0:00:23]} 50. Bf8 {[%emt 0:00:27]} h5 {[%emt 0:00:14]} 51. g5+ {[%emt 0:00:19]} Kf7 {[%emt 0:00:03]} 52. Bd6 {[%emt 0:00:11]} Ke6 {[%emt 0:00:04]} 53. Bb4 {[%emt 0:00:07]} Kd7 {[%emt 0:00:09]} 54. Bh3+ {[%emt 0:00:07]} Kc6 {[%emt 0:00:04]} 55. Be6 {[%emt 0:00:04]} a5 {[%emt 0:00:33]} 56. Ba3 {[%emt 0:00:17]} 1-0

[Event "1st Bangalore GM-Open-A 2024"]
[Site "Bangalore"]
[Date "2024.01.23"]
[Round "7.19"]
[White "Kaustuv, Kundu"]
[Black "Dere Pushkar"]
[Result "0-1"]
[ECO "D45"]
[WhiteElo "2423"]
[BlackElo "2191"]
[Annotator "TA"]
[PlyCount "46"]
[EventDate "2024.01.20"]
[EventType "swiss"]
[EventCountry "IND"]
[SourceTitle "playchess.com"]
[Source "ChessBase"]
[SourceQuality "1"]
[TimeControl "5400+30"]

{[%evp 19,46,0,0,0,38,44,50,0,0,0,0,0,0,0,0,0,0,0,0,0,0,-160,-167,-439,-438,-409,-420,-1012,-997]} 1. Nf3 {[%emt 0:12:30]} d5 {[%emt 0:02:02]} 2. e3 {[%emt 0:00:06]} Nf6 {[%emt 0:00:21]} 3. c4 {[%emt 0:00:14]} c6 {[%emt 0:00:09]} 4. Nc3 {[%emt 0:00:07]} e6 {[%emt 0:00:06]} 5. b3 {[%emt 0:00:06]} Bd6 {[%emt 0:00:16]} 6. Bb2 {[%emt 0:00:08]} O-O {[%emt 0:00:22]} 7. Be2 {[%emt 0:02:35]} b6 {[%emt 0:00:08][%cal Bb7b6,Bb6b5][%mdl 32] EV=13.63} 8. Qc2 {[%emt 0:00:37]} Bb7 {[%emt 0:00:50]} 9. d4 {[%emt 0:00:37]} Nbd7 {[%emt 0:04:27]} 10. O-O {[%emt 0:00:21]} Qe7 {[%emt 0:01:10]} 11. a4 {[%emt 0:00:10][%cal Ba2a4,Ba4a5][%mdl 32] EV=16.05. Goes to a5 (dbg))} a6 {[%emt 0:05:24] Inaccurate} 12. a5 {[%emt 0:09:27] OK} b5 {[%emt 0:00:37]} 13. e4 {[%emt 0:13:33] Mistake (0.5)} ({White should play} 13. c5 $14 Bc7 14. e4) 13... dxe4 $11 {[%emt 0:09:02] OK} 14. Nxe4 {[%emt 0:00:09]} Nxe4 {[%emt 0:05:27]} 15. Qxe4 {[%emt 0:00:21]} bxc4 {[%emt 0:02:16] OK} 16. bxc4 {[%emt 0:01:23]} c5 {[%emt 0:07:02] OK} 17. Qxb7 {[%emt 0:13:42] [#] Bc3 would now be deadly. OK} Rab8 {[%emt 0:01:13] Best (Easy)} 18. Qxa6 {[%emt 0:00:19] OK} Rxb2 {[%emt 0:00:08] OK} 19. Rfe1 {[%emt 0:05:40] OK} cxd4 {[%emt 0:02:49] OK} 20. Nxd4 {[%emt 0:10:09] [#] White is weak on the dark squares. Mistake (1.6)} ({Better is} 20. Qc6 $1 $11) 20... Bc5 $1 $36 {[%emt 0:11:36][%mdl 2048] Black is in control. Black is more active. Strong} 21. Rad1 {[%emt 0:00:56] Mistake (2.7)} (21. Nf3 {was forced.} Rfb8 22. Qc6) 21... Qh4 $19 {[%emt 0:03:57][%cal Rc5d4] OK} 22. g3 {[%emt 0:00:51] OK} Qf6 {[%emt 0:00:08] OK} 23. Nf3 {[%emt 0:00:38] Mistake (5.9)} (23. Rf1 $142 Bxd4 24. Qd6) 23... Ne5 {[%emt 0:00:11] Weighted Error Value: White=1.37/Black=0.03 (flawless) . Best.  Mistake:       	White=4     	---        Inaccurate:     	---       	Black=1      OK:         	White=5     	Black=7      Best:        	---       	Black=2      Strong:       	---       	Black=1} 0-1

[Event "1st Bangalore GM-Open-A 2024"]
[Site "Bangalore"]
[Date "2024.01.23"]
[Round "7.20"]
[White "Dushyant Sharma"]
[Black "Deepan Chakkravarthy J."]
[Result "0-1"]
[ECO "B86"]
[WhiteElo "2357"]
[BlackElo "2422"]
[Annotator "RC"]
[PlyCount "78"]
[EventDate "2024.01.20"]
[EventType "swiss"]
[EventCountry "IND"]
[SourceTitle "playchess.com"]
[Source "ChessBase"]
[SourceQuality "1"]
[TimeControl "5400+30"]

1. e4 {[%emt 0:00:02]} c5 {[%emt 0:00:07]} 2. Nf3 {[%emt 0:00:05]} d6 {[%emt 0:00:11]} 3. d4 {[%emt 0:00:04]} cxd4 {[%emt 0:00:03]} 4. Nxd4 {[%emt 0:00:05]} Nf6 {[%emt 0:00:03]} 5. Nc3 {[%emt 0:00:08]} a6 {[%emt 0:00:02]} 6. Bg5 {[%emt 0:00:09]} Nbd7 {[%emt 0:01:59]} 7. Bc4 {[%emt 0:00:26]} e6 {[%emt 0:04:29]} 8. Bb3 {[%emt 0:07:11]} Nc5 {[%emt 0:01:17]} 9. Qe2 {[%emt 0:04:15]} Be7 {[%emt 0:05:12]} 10. f4 {[%emt 0:03:07]} h6 {[%emt 0:02:56]} 11. Bxf6 {[%emt 0:00:32]} Bxf6 {[%emt 0:00:03]} 12. O-O-O {[%emt 0:01:01]} Qc7 {[%emt 0:00:30]} 13. Kb1 {[%emt 0:01:15]} Bd7 {[%emt 0:02:49]} 14. Qh5 {[%emt 0:09:27]} g6 {[%emt 0:10:54]} 15. Qf3 {[%emt 0:01:52]} O-O-O {[%emt 0:00:18]} 16. g4 {[%emt 0:06:27]} Qb6 {[%emt 0:09:08]} 17. Qe3 {[%emt 0:08:28]} g5 {[%emt 0:11:18]} 18. f5 {[%emt 0:11:48]} Kb8 {[%emt 0:04:25]} 19. Nde2 {[%emt 0:09:36]} Ka7 {[%emt 0:02:43]} 20. Qf3 {[%emt 0:10:52]} Be5 {[%emt 0:13:14]} 21. h4 {[%emt 0:01:59]} Bc6 {[%emt 0:00:06]} 22. Rh3 {[%emt 0:03:54]} a5 {[%emt 0:07:56]} 23. a4 {[%emt 0:00:10]} Qb4 {[%emt 0:00:05]} 24. Qe3 {[%emt 0:04:13]} Bxe4 {[%emt 0:03:37]} 25. Nd4 {[%emt 0:04:58]} exf5 {[%emt 0:00:19]} 26. gxf5 {[%emt 0:02:01]} g4 {[%emt 0:00:26]} 27. Rg3 {[%emt 0:04:30]} Bxg3 {[%emt 0:03:20]} 28. Qxg3 {[%emt 0:02:55]} Nxb3 {[%emt 0:01:04]} 29. Nxb3 {[%emt 0:00:18]} Ka8 {[%emt 0:04:33]} 30. Nd5 {[%emt 0:02:34]} Bxd5 {[%emt 0:01:04]} 31. Rxd5 {[%emt 0:00:01]} Rhe8 {[%emt 0:00:59]} 32. Rxa5+ {[%emt 0:00:26]} Kb8 {[%emt 0:00:04]} 33. Ka2 {[%emt 0:01:35]} b6 {[%emt 0:00:47]} 34. Ra6 {[%emt 0:00:34]} Kb7 {[%emt 0:02:56]} 35. Qd3 {[%emt 0:00:01]} Rc8 {[%emt 0:00:53]} 36. a5 {[%emt 0:00:36]} Qa4+ {[%emt 0:00:35]} 37. Kb1 {[%emt 0:00:01]} Re1+ {[%emt 0:00:10]} 38. Nc1 {[%emt 0:00:02]} Rxc1+ {[%emt 0:00:23]} 39. Kxc1 {[%emt 0:00:01]} Qxc2+ {[%emt 0:00:04]} 0-1

[Event "1st Bangalore GM-Open-A 2024"]
[Site "Bangalore"]
[Date "2024.01.23"]
[Round "7.21"]
[White "Omidi, Arya"]
[Black "Panda Sambit"]
[Result "1-0"]
[ECO "B12"]
[WhiteElo "2301"]
[BlackElo "2404"]
[Annotator "RC"]
[PlyCount "61"]
[EventDate "2024.01.20"]
[EventType "swiss"]
[EventCountry "IND"]
[SourceTitle "playchess.com"]
[Source "ChessBase"]
[SourceQuality "1"]
[TimeControl "5400+30"]

1. e4 {[%emt 0:00:03]} c6 {[%emt 0:03:53]} 2. d4 {[%emt 0:00:27]} d5 {[%emt 0:00:07]} 3. e5 {[%emt 0:00:43]} c5 {[%emt 0:00:30]} 4. dxc5 {[%emt 0:00:25]} e6 {[%emt 0:00:05]} 5. c3 {[%emt 0:00:38]} Bxc5 {[%emt 0:00:50]} 6. Qg4 {[%emt 0:00:23]} Ne7 {[%emt 0:28:55]} 7. b4 {[%emt 0:02:16]} Bb6 {[%emt 0:00:57]} 8. Qxg7 {[%emt 0:00:10]} Rg8 {[%emt 0:00:02]} 9. Qxh7 {[%emt 0:01:02]} Nbc6 {[%emt 0:05:31]} 10. Nf3 {[%emt 0:00:25]} Qc7 {[%emt 0:00:07]} 11. Bf4 {[%emt 0:07:51]} Bd7 {[%emt 0:01:39]} 12. b5 {[%emt 0:01:10]} Na5 {[%emt 0:00:51]} 13. Bd3 {[%emt 0:01:08]} O-O-O {[%emt 0:02:41]} 14. O-O {[%emt 0:04:24]} Ng6 {[%emt 0:07:57]} 15. Bg3 {[%emt 0:05:24]} Nc4 {[%emt 0:03:08]} 16. a4 {[%emt 0:03:21]} Ngxe5 {[%emt 0:10:13]} 17. Nxe5 {[%emt 0:05:38]} Nxe5 {[%emt 0:03:27]} 18. Be2 {[%emt 0:20:43]} f5 {[%emt 0:11:40]} 19. a5 {[%emt 0:05:19]} Bc5 {[%emt 0:00:29]} 20. b6 {[%emt 0:03:01]} Qd6 {[%emt 0:00:07]} 21. bxa7 {[%emt 0:00:35]} Bxa7 {[%emt 0:01:31]} 22. a6 {[%emt 0:02:11]} f4 {[%emt 0:09:34]} 23. axb7+ {[%emt 0:01:08]} Kb8 {[%emt 0:01:04]} 24. Bxf4 {[%emt 0:12:11]} Nf3+ {[%emt 0:00:09]} 25. Bxf3 {[%emt 0:00:02]} Qxf4 {[%emt 0:00:05]} 26. Qe7 {[%emt 0:02:42]} Bc6 {[%emt 0:06:20]} 27. Nd2 {[%emt 0:09:37]} Rh8 {[%emt 0:01:27]} 28. Rfb1 {[%emt 0:02:07]} Bxf2+ {[%emt 0:00:38]} 29. Kf1 {[%emt 0:00:23]} Rd7 {[%emt 0:00:30]} 30. Ra8+ {[%emt 0:00:29]} Kc7 {[%emt 0:00:02]} 31. Rxh8 {[%emt 0:00:15]} 1-0

[Event "1st Bangalore GM-Open-A 2024"]
[Site "Bangalore"]
[Date "2024.01.23"]
[Round "7.22"]
[White "Daaevik Wadhawan"]
[Black "Venkatesh, M.R."]
[Result "1/2-1/2"]
[ECO "A21"]
[WhiteElo "1997"]
[BlackElo "2392"]
[Annotator "RC"]
[PlyCount "78"]
[EventDate "2024.01.20"]
[EventType "swiss"]
[EventCountry "IND"]
[SourceTitle "playchess.com"]
[Source "ChessBase"]
[SourceQuality "1"]
[TimeControl "5400+30"]

1. c4 {[%emt 0:00:50]} e5 {[%emt 0:01:01]} 2. Nc3 {[%emt 0:00:06]} Bb4 {[%emt 0:00:11]} 3. Nd5 {[%emt 0:00:01]} Be7 {[%emt 0:00:12]} 4. d4 {[%emt 0:00:04]} exd4 {[%emt 0:00:32]} 5. Qxd4 {[%emt 0:00:03]} Nf6 {[%emt 0:00:07]} 6. Nxe7 {[%emt 0:00:09]} Qxe7 {[%emt 0:00:06]} 7. Bg5 {[%emt 0:00:04]} Nc6 {[%emt 0:00:23]} 8. Qc3 {[%emt 0:00:02]} Ne5 {[%emt 0:01:08]} 9. e3 {[%emt 0:00:02]} d6 {[%emt 0:04:06]} 10. Ne2 {[%emt 0:04:34]} h6 {[%emt 0:07:49]} 11. Bxf6 {[%emt 0:06:11]} Qxf6 {[%emt 0:00:09]} 12. f3 {[%emt 0:11:39]} O-O {[%emt 0:11:14]} 13. Nf4 {[%emt 0:11:43]} Re8 {[%emt 0:05:33]} 14. Be2 {[%emt 0:02:28]} Qg5 {[%emt 0:13:35]} 15. g3 {[%emt 0:09:48]} Ng6 {[%emt 0:09:02]} 16. Qd4 {[%emt 0:11:40]} Nxf4 {[%emt 0:09:06]} 17. gxf4 {[%emt 0:09:10]} Qh4+ {[%emt 0:00:17]} 18. Kd2 {[%emt 0:00:02]} Bf5 {[%emt 0:00:55]} 19. Rag1 {[%emt 0:03:52]} g6 {[%emt 0:00:08]} 20. Rg3 {[%emt 0:03:00]} c5 {[%emt 0:03:28]} 21. Qc3 {[%emt 0:01:55]} Rad8 {[%emt 0:04:25]} 22. Rhg1 {[%emt 0:09:46]} Kh7 {[%emt 0:02:42]} 23. Kc1 {[%emt 0:03:25]} b5 {[%emt 0:13:17]} 24. Qd2 {[%emt 0:04:32]} bxc4 {[%emt 0:00:46]} 25. Bxc4 {[%emt 0:00:55]} d5 {[%emt 0:03:14]} 26. Bb5 {[%emt 0:01:00]} Re6 {[%emt 0:01:11]} 27. Bd3 {[%emt 0:01:00]} Bxd3 {[%emt 0:05:33]} 28. Qxd3 {[%emt 0:00:02]} f5 {[%emt 0:00:06]} 29. Kb1 {[%emt 0:02:00]} d4 {[%emt 0:02:55]} 30. e4 {[%emt 0:02:16]} fxe4 {[%emt 0:00:39]} 31. Qb3 {[%emt 0:00:02]} Qf6 {[%emt 0:01:31]} 32. Rxg6 {[%emt 0:02:15]} Qxg6 {[%emt 0:00:05]} 33. Rxg6 {[%emt 0:00:10]} Rxg6 {[%emt 0:00:03]} 34. Qf7+ {[%emt 0:00:07]} Rg7 {[%emt 0:00:03]} 35. Qf5+ {[%emt 0:01:22]} Kh8 {[%emt 0:00:21]} 36. Qf6 {[%emt 0:00:04]} Rdd7 {[%emt 0:01:20]} 37. Qxh6+ {[%emt 0:00:55]} Kg8 {[%emt 0:00:05]} 38. Qe6+ {[%emt 0:00:12]} Kf8 {[%emt 0:00:45]} 39. Qf5+ {[%emt 0:00:52]} Kg8 {[%emt 0:00:42]} 1/2-1/2

[Event "1st Bangalore GM-Open-A 2024"]
[Site "Bangalore"]
[Date "2024.01.23"]
[Round "7.23"]
[White "Sriram Adarsh Uppala"]
[Black "Subhayan Kundu"]
[Result "0-1"]
[ECO "D00"]
[WhiteElo "1900"]
[BlackElo "2385"]
[Annotator "RC"]
[PlyCount "86"]
[EventDate "2024.01.20"]
[EventType "swiss"]
[EventCountry "IND"]
[SourceTitle "playchess.com"]
[Source "ChessBase"]
[SourceQuality "1"]
[TimeControl "5400+30"]

1. d4 {[%emt 0:00:03]} d5 {[%emt 0:13:21]} 2. Nc3 {[%emt 0:00:07]} Nf6 {[%emt 0:00:27]} 3. Bf4 {[%emt 0:00:05]} e6 {[%emt 0:00:16]} 4. Nb5 {[%emt 0:00:04]} Bb4+ {[%emt 0:00:42]} 5. c3 {[%emt 0:00:05]} Ba5 {[%emt 0:00:06]} 6. a4 {[%emt 0:00:02]} a6 {[%emt 0:01:02]} 7. b4 {[%emt 0:00:08]} Nc6 {[%emt 0:00:26]} 8. bxa5 {[%emt 0:00:09]} axb5 {[%emt 0:00:05]} 9. axb5 {[%emt 0:00:04]} Nxa5 {[%emt 0:00:04]} 10. Bg5 {[%emt 0:00:04]} Bd7 {[%emt 0:01:56]} 11. e3 {[%emt 0:03:07]} Nc4 {[%emt 0:06:24]} 12. Bxc4 {[%emt 0:18:06]} dxc4 {[%emt 0:00:17]} 13. e4 {[%emt 0:01:35]} Bxb5 {[%emt 0:10:01]} 14. Rxa8 {[%emt 0:07:04]} Qxa8 {[%emt 0:00:20]} 15. Bxf6 {[%emt 0:00:06]} gxf6 {[%emt 0:00:08]} 16. Ne2 {[%emt 0:00:06]} Qa2 {[%emt 0:06:15]} 17. O-O {[%emt 0:03:03]} Ke7 {[%emt 0:01:06]} 18. Ng3 {[%emt 0:04:07]} Qa5 {[%emt 0:09:03]} 19. Qf3 {[%emt 0:00:51]} Bd7 {[%emt 0:01:58]} 20. d5 {[%emt 0:06:17]} Rg8 {[%emt 0:08:00]} 21. Re1 {[%emt 0:05:02]} e5 {[%emt 0:02:29]} 22. h3 {[%emt 0:01:25]} Qa3 {[%emt 0:06:32]} 23. Re3 {[%emt 0:00:37]} b5 {[%emt 0:04:32]} 24. Qh5 {[%emt 0:01:29]} b4 {[%emt 0:07:43]} 25. cxb4 {[%emt 0:00:08]} Qxb4 {[%emt 0:03:17]} 26. Qf3 {[%emt 0:03:31]} Rb8 {[%emt 0:01:38]} 27. Ne2 {[%emt 0:01:01]} Qe1+ {[%emt 0:01:32]} 28. Kh2 {[%emt 0:00:05]} Rb2 {[%emt 0:00:16]} 29. Kg3 {[%emt 0:01:25]} Qd1 {[%emt 0:00:05]} 30. Nc3 {[%emt 0:02:37]} Qxf3+ {[%emt 0:00:05]} 31. Rxf3 {[%emt 0:00:01]} Rd2 {[%emt 0:02:37]} 32. Nb1 {[%emt 0:02:17]} Rd4 {[%emt 0:00:35]} 33. Na3 {[%emt 0:02:56]} Ba4 {[%emt 0:01:08]} 34. Rc3 {[%emt 0:01:36]} Bb3 {[%emt 0:00:09]} 35. Kf3 {[%emt 0:00:06]} Kd6 {[%emt 0:02:11]} 36. Nb5+ {[%emt 0:09:11]} Kc5 {[%emt 0:00:02]} 37. Nxc7 {[%emt 0:00:11]} Bd1+ {[%emt 0:01:05]} 38. Kg3 {[%emt 0:01:08]} Rd3+ {[%emt 0:02:04]} 39. Rxd3 {[%emt 0:00:43]} cxd3 {[%emt 0:00:02]} 40. d6 {[%emt 0:03:45]} Kxd6 {[%emt 0:00:11]} 41. Nb5+ {[%emt 0:01:47]} Kc5 {[%emt 0:00:06]} 42. Nc3 {[%emt 0:00:01]} Bc2 {[%emt 0:01:40]} 43. Kg4 {[%emt 0:02:45]} Kd4 {[%emt 0:00:41]} 0-1

[Event "1st Bangalore GM-Open-A 2024"]
[Site "Bangalore"]
[Date "2024.01.23"]
[Round "7.24"]
[White "Lalit Babu M R"]
[Black "Majumder Shrayan"]
[Result "1-0"]
[ECO "D34"]
[WhiteElo "2525"]
[BlackElo "1916"]
[Annotator "RC"]
[PlyCount "27"]
[EventDate "2024.01.20"]
[EventType "swiss"]
[EventCountry "IND"]
[SourceTitle "playchess.com"]
[Source "ChessBase"]
[SourceQuality "1"]
[TimeControl "5400+30"]

1. Nf3 {[%emt 0:00:03]} d5 {[%emt 0:00:29]} 2. c4 {[%emt 0:00:03]} e6 {[%emt 0:00:14]} 3. g3 {[%emt 0:00:22]} c5 {[%emt 0:04:20]} 4. Bg2 {[%emt 0:00:57]} Nf6 {[%emt 0:00:15]} 5. O-O {[%emt 0:01:02]} Nc6 {[%emt 0:01:49]} 6. cxd5 {[%emt 0:00:13]} exd5 {[%emt 0:00:30]} 7. d4 {[%emt 0:00:05]} Be7 {[%emt 0:06:14]} 8. Nc3 {[%emt 0:00:54]} O-O {[%emt 0:00:09]} 9. Bf4 {[%emt 0:01:31]} c4 {[%emt 0:06:18]} 10. Ne5 {[%emt 0:00:41]} Be6 {[%emt 0:01:46]} 11. Nxc4 {[%emt 0:09:06]} dxc4 {[%emt 0:02:15]} 12. d5 {[%emt 0:00:03]} Nxd5 {[%emt 0:06:32]} 13. Nxd5 {[%emt 0:00:20]} Bd6 {[%emt 0:01:58]} 14. Bxd6 {[%emt 0:00:08]} 1-0